bitfinex-derivatives/quotes_ETHF0:USTF0_20250712
["timestamp","ask_amount","ask_price","bid_price","bid_amount"]
[1752312930845,3.08268,2973.9,2973.8,3.17621]
[1752312931041,2.4104,2973.9,2973.8,3.17621]
[1752312931642,3.24848236,2973.9,2973.8,3.17621]
[1752312934745,3.92076236,2973.9,2973.8,3.17621]
[1752312935545,3.08268,2973.9,2973.8,1.5536]
[1752312935744,3.08268,2973.9,2973.7,2.2259]
[1752312935745,3.08273,2973.8,2973.7,2.2259]
[1752312935950,3.08277,2973.5,2973.4,0.9577]
[1752312936150,3.92085236,2973.5,2973.4,0.9577]
[1752312936651,3.92085236,2973.5,2973.4,0.67239]
[1752312936850,2.10925236,2973.5,2973.4,0.67239]
[1752312937054,3.00405236,2973.5,2973.4,0.67239]
[1752312937545,3.92085236,2973.5,2973.4,0.67239]
[1752312940256,1.27119,2973.4,2973.3,4.8379]
[1752312940554,3.08279,2973.4,2973.3,4.8379]
[1752312940949,3.08279,2973.4,2973.3,3.2078]
[1752312941155,0.67244,2973.2,2973.1,1.63014]
[1752312941355,3.02612236,2973.2,2973.1,1.63014]
[1752312941556,3.92092236,2973.2,2973.1,1.63014]
[1752312942255,3.08286,2973.1,2973.0,3.88028]
[1752312944153,49.24686,2973.1,2973.0,3.88028]
[1752312945351,49.24686,2973.1,2973.0,4.47618]
[1752312945552,49.24686,2973.1,2973.0,5.41608]
[1752312945852,49.24686,2973.1,2973.0,6.38028]
[1752312947361,49.24686,2973.1,2973.0,4.7436]
[1752312947559,1.31948,2973.0,2972.9,1.61239]
[1752312947858,0.67251,2972.9,2972.8,0.67251]
[1752312948062,0.67251,2972.9,2972.8,2.22921]
[1752312948063,4.09529236,2972.9,2972.8,2.22921]
[1752312949460,3.25727,2972.8,2972.7,1.61244]
[1752312949659,3.25727,2972.7,2972.6,1.61245]
[1752312949857,4.09535236,2972.7,2972.6,2.22925]
[1752312950061,4.09535236,2972.7,2972.6,3.19345]
[1752312950965,4.09535236,2972.7,2972.6,2.22925]
[1752312951966,4.09535236,2972.7,2972.6,3.19345]
[1752312955660,4.09535236,2972.7,2972.6,1.5567]
[1752312956368,4.09535236,2972.7,2972.6,2.22927]
[1752312957058,4.09535236,2972.7,2972.6,3.19347]
[1752312961664,1.9377,2972.5,2971.8,4.172]
[1752312961963,2.26578,2971.7,2971.6,1.581]
[1752312962166,50.25256236,2971.7,2971.6,0.6168]
[1752312962360,50.25256236,2971.7,2971.4,1.9041]
[1752312962664,1.48508236,2971.5,2971.4,2.25382]
[1752312962866,47.8127,2971.5,2971.4,2.25382]
[1752312963066,0.9917,2971.9,2971.8,2.25375]
[1752312963265,1.31972,2972.0,2971.9,1.28951]
[1752312963466,2.31142,2972.0,2971.9,1.28951]
[1752312963663,1.6387,2972.0,2971.9,1.28951]
[1752312963865,46.195,2972.0,2971.9,4.03169236]
[1752312964464,46.195,2972.0,2971.9,3.19361]
[1752312966875,5.51914,2972.3,2972.2,1.28946]
[1752312967172,28.60814,2972.3,2972.2,3.19356]
[1752312967561,29.55414,2972.3,2972.2,3.19356]
[1752312967772,29.55414,2972.3,2972.2,2.5209]
[1752312968073,29.55414,2972.3,2972.2,1.5567]
[1752312968868,29.55414,2972.3,2972.2,0.6168]
[1752312969172,2.5847,2971.8,2971.7,2.25378]
[1752312969369,48.7517,2971.8,2971.7,2.25378]
[1752312969673,48.7517,2971.8,2971.7,3.19368]
[1752312970270,47.8057,2971.8,2971.7,3.19368]
[1752312971770,0.946,2972.0,2971.9,0.67273]
[1752312971976,23.08,2972.0,2971.9,3.19363]
[1752312973175,1.6387,2972.2,2972.1,3.23549]
[1752312973377,24.7187,2972.2,2972.1,3.23549]
[1752312973570,1.6387,2972.4,2972.3,1.5986]
[1752312973776,5.51908,2972.6,2972.5,1.2894]
[1752312973971,29.56308,2972.6,2972.5,3.2354]
[1752312974171,26.35528,2972.6,2972.5,3.2354]
[1752312974372,24.7257,2972.6,2972.5,3.2354]
[1752312975871,25.39827,2972.6,2972.5,3.2354]
[1752312976474,26.35527,2972.6,2972.5,3.2354]
[1752312976675,26.30827,2972.6,2972.5,2.5628]
[1752312976872,24.6787,2972.6,2972.5,3.2354]
[1752312982589,1.5479,2973.1,2973.0,3.16666]
[1752312982777,26.4012789,2973.1,2973.0,3.16666]
[1752312984092,26.25336,2973.1,2973.0,3.16666]
[1752312984291,24.6239,2973.1,2973.0,3.16666]
[1752312985788,24.6139,2973.1,2973.0,3.16666]
[1752312987485,25.28636,2973.1,2973.0,3.16666]
[1752312988291,26.24336,2973.1,2973.0,3.16666]
[1752312988482,25.5709,2973.1,2973.0,3.16666]
[1752312988680,26.24336,2973.1,2973.0,3.16666]
[1752312992500,24.6139,2973.1,2973.0,3.16666]
[1752312992797,25.5709,2973.1,2973.0,3.16666]
[1752312993097,26.24336,2973.1,2973.0,3.16666]
[1752312993398,25.5709,2973.1,2973.0,3.16666]
[1752312993600,1.5602,2973.6,2973.5,2.25397]
[1752312993895,1.5602,2973.6,2973.5,3.16657]
[1752312993896,0.6032,2973.6,2973.5,3.16657]
[1752312994192,1.5479,2973.6,2973.5,3.16657]
[1752312994985,1.5479,2973.6,2973.4,3.2078]
[1752312994986,23.046,2973.7,2973.6,3.16655]
[1752312996594,23.9937,2973.9,2973.8,3.1665]
[1752312996897,24.81266084,2973.9,2973.8,3.1665]
[1752312997100,0.81896084,2973.9,2973.8,3.1665]
[1752312997394,1.5479,2974.1,2974.0,3.16646]
[1752312997593,25.41278097,2974.1,2974.0,3.16646]
[1752312998202,26.36978097,2974.1,2974.0,3.16646]
[1752312998498,25.5509,2974.1,2974.0,3.16646]
[1752312999291,26.38898236,2974.1,2974.0,3.16646]
[1752313000396,27.06121236,2974.1,2974.0,3.16646]
[1752313001399,26.38898236,2974.1,2974.0,3.16646]
[1752313001600,27.06121236,2974.1,2974.0,3.16646]
[1752313002901,26.38898236,2974.1,2974.0,3.16646]
[1752313003302,25.5509,2974.1,2974.0,3.16646]
[1752313004796,26.38898236,2974.1,2974.0,3.16646]
[1752313005401,27.06121236,2974.1,2974.0,3.16646]
[1752313007700,25.5509,2974.1,2974.0,3.16646]
[1752313007999,27.06121236,2974.1,2974.0,3.16646]
[1752313008504,26.22313,2974.1,2974.0,3.16646]
[1752313008797,27.06121236,2974.1,2974.0,3.16646]
[1752313009195,27.06121236,2974.1,2974.0,1.5816]
[1752313009403,1.30946,2974.0,2973.9,1.60917]
[1752313009602,3.22846,2974.0,2973.9,2.25847]
[1752313009901,3.22846,2974.0,2973.9,1.5862]
[1752313010104,0.6723,2973.9,2973.8,1.60918]
[1752313010398,49.43938236,2973.9,2973.8,0.67228]
[1752313010603,49.43938236,2973.9,2973.8,2.25848]
[1752313011304,48.6013,2973.9,2973.8,3.17878]
[1752313012304,49.43938236,2973.9,2973.8,3.17878]
[1752313015909,47.81518236,2973.9,2973.8,3.17878]
[1752313016104,48.76708236,2973.9,2973.8,3.17878]
[1752313016300,46.01,2973.9,2973.8,3.17878]
[1752313016905,46.9771,2973.9,2973.8,3.17878]
[1752313017305,0.9671,2974.1,2974.0,3.17876]
[1752313017611,23.9641,2974.1,2974.0,6.38656]
[1752313018510,24.6013,2974.1,2974.0,6.38656]
[1752313019012,25.27353,2974.1,2974.0,6.38656]
[1752313019208,24.6013,2974.1,2974.0,6.38656]
[1752313019712,25.5532,2974.1,2974.0,6.38656]
[1752313021310,22.997,2974.1,2974.0,6.38656]
[1752313021512,1.6043,2974.4,2974.3,3.17869]
[1752313021814,24.5923,2974.4,2974.3,3.17869]
[1752313022314,27.05445236,2974.4,2974.3,3.17869]
[1752313023414,25.5442,2974.4,2974.3,3.17869]
[1752313023815,26.21637,2974.4,2974.3,3.17869]
[1752313024018,25.5442,2974.4,2974.3,3.17869]
[1752313025217,5.764,2974.8,2974.7,0.6493]
[1752313025415,29.57085498,2974.8,2974.7,3.1786]
[1752313025616,30.40893734,2974.8,2974.7,3.1786]
[1752313026415,30.40937135,2974.8,2974.7,3.1786]
[1752313027110,31.07745135,2974.8,2974.7,3.1786]
[1752313028417,31.07745135,2974.8,2974.7,2.2583]
[1752313028617,31.07745135,2974.8,2974.7,1.609]
[1752313028918,31.07745135,2974.8,2974.7,2.2583]
[1752313029317,31.07745135,2974.8,2974.7,0.6721]
[1752313029712,31.07745135,2974.8,2974.7,1.609]
[1752313029913,31.07745135,2974.8,2974.7,2.2583]
[1752313030816,5.63338899,2974.8,2974.7,3.1786]
[1752313031016,2.5562,2975.0,2974.9,3.17855]
[1752313031221,2.42718236,2975.3,2975.2,3.17849]
[1752313031421,26.2187856,2975.3,2975.2,3.17849]
[1752313031617,2.3306456,2975.3,2975.2,1.32129]
[1752313031817,3.39428236,2975.3,2975.2,1.5862]
[1752313032022,3.39428236,2975.3,2975.2,2.25819]
[1752313032222,49.41228236,2975.3,2975.2,2.25819]
[1752313032520,6.32208236,2975.6,2975.5,3.17842]
[1752313032723,53.82379929,2975.6,2975.5,3.17842]
[1752313033016,53.82379929,2975.6,2974.9,5.72601236]
[1752313033017,3.22813,2975.5,2975.4,1.5862]
[1752313033223,2.5562,2975.5,2975.4,1.5862]
[1752313033426,3.22812,2975.5,2975.4,2.5065]
[1752313033623,3.39428236,2975.5,2975.4,3.17844]
[1752313033922,4.06620236,2975.5,2975.4,2.5065]
[1752313035122,1.2868,2975.2,2975.1,2.4811]
[1752313035423,48.9584,2975.2,2975.1,3.15311]
[1752313035618,49.63039,2975.2,2975.1,2.4811]
[1752313036423,1.28683,2975.0,2974.9,4.7288]
[1752313036625,50.45751236,2975.0,2974.9,4.7288]
[1752313036925,50.45751236,2975.0,2974.9,1.521]
[1752313037127,49.61943,2975.0,2974.9,1.5608]
[1752313037327,50.45751236,2975.0,2974.9,1.5608]
[1752313037522,1.28687,2974.9,2974.8,0.6204]
[1752313037722,3.34748236,2974.9,2974.8,2.23288]
[1752313037920,4.01953236,2974.9,2974.8,1.5608]
[1752313038630,4.01953236,2974.9,2974.8,2.23288]
[1752313039129,4.01953236,2974.9,2974.8,1.5608]
[1752313039328,3.1815,2974.7,2974.6,2.4614]
[1752313039530,50.43958236,2974.7,2974.6,1.5608]
[1752313040430,1.8946,2974.6,2974.5,0.9404]
[1752313040627,4.01960236,2974.6,2974.5,3.13354]
[1752313041126,3.08210236,2974.6,2974.5,2.4614]
[1752313041434,4.01960236,2974.6,2974.5,1.5608]
[1752313041622,1.28694,2974.5,2974.4,2.23296]
[1752313041827,49.58454,2974.5,2974.4,2.23296]
[1752313042128,49.58454,2974.5,2974.4,2.23297]
[1752313042633,1.28697,2974.4,2974.3,1.61258]
[1752313042931,4.01965236,2974.4,2974.3,2.23298]
[1752313043327,3.34748236,2974.4,2974.3,3.13358]
[1752313043528,1.5719,2974.4,2974.3,3.13358]
[1752313045331,2.5094,2974.4,2974.3,3.13358]
[1752313046230,3.34748236,2974.4,2974.3,3.13358]
[1752313048434,1.5719,2974.4,2974.3,3.13358]
[1752313048834,48.03225,2974.5,2974.4,3.13357]
[1752313049036,48.96975,2974.5,2974.4,3.13357]
[1752313050241,47.07515,2974.5,2974.4,3.13357]
[1752313050444,46.403,2974.5,2974.4,3.13357]
[1752313050836,46.403,2974.5,2974.4,6.34137]
[1752313055752,47.3601,2974.5,2974.4,6.34137]
[1752313057244,46.403,2974.5,2974.4,6.34137]
[1752313060453,47.3601,2974.5,2974.4,6.34137]
[1752313063362,46.403,2974.5,2974.4,6.34137]
[1752313063761,48.3455,2974.5,2974.4,6.34137]
[1752313063963,49.85572236,2974.5,2974.4,5.44077]
[1752313064151,49.85572236,2974.5,2974.4,1.5608]
[1752313064557,3.23599,2974.3,2974.2,2.2754]
[1752313064757,50.31507236,2974.3,2974.2,2.2754]
[1752313065456,50.31507236,2974.3,2973.8,2.5361]
[1752313065457,1.29358,2973.9,2973.8,2.5361]
[1752313065763,48.7829,2973.9,2973.8,3.2084]
[1752313065962,49.45518,2973.9,2973.8,3.2084]
[1752313067167,50.29326236,2973.9,2973.8,3.2084]
[1752313068160,50.29326236,2973.9,2973.8,2.5361]
[1752313069366,49.62098236,2973.9,2973.8,3.2084]
[1752313069965,50.29326236,2973.9,2973.8,3.2084]
[1752313071068,50.29326236,2973.9,2973.8,2.2755]
[1752313071468,50.29326236,2973.9,2973.7,3.2078]
[1752313071469,0.6213,2973.8,2973.6,0.67232]
[1752313071773,49.58998236,2973.7,2973.6,3.20842]
[1752313072358,49.58998236,2973.7,2973.6,2.27552]
[1752313072972,50.26232236,2973.7,2973.6,2.27552]
[1752313073169,0.6213,2973.5,2973.1,3.2078]
[1752313073368,49.42632,2973.4,2973.3,3.20849]
[1752313076873,49.42632,2973.4,2973.3,2.27559]
[1752313077069,49.42632,2973.4,2973.3,1.6032]
[1752313077874,48.7539,2973.4,2973.3,3.20852]
[1752313078262,46.189,2973.4,2973.3,3.20852]
[1752313081870,1.5545,2973.7,2973.6,3.20845]
[1752313082075,47.7205,2973.7,2973.6,4.04653236]
[1752313083475,46.166,2973.7,2973.6,4.04653236]
[1752313084171,1.5545,2974.2,2974.1,3.20833]
[1752313084473,48.7019,2974.2,2974.1,3.20833]
[1752313086679,49.53998236,2974.2,2974.1,3.20833]
[1752313087378,49.53998236,2974.2,2974.1,2.27543]
[1752313087573,49.53998236,2974.2,2974.1,3.20833]
[1752313088075,47.7165,2974.2,2974.1,3.20833]
[1752313088280,46.162,2974.2,2974.1,4.04641236]
[1752313088481,48.6789,2974.7,2974.6,1.28792]
[1752313088779,48.51354165,2974.7,2974.6,4.04630236]
[1752313088974,47.6935,2974.7,2974.6,4.04630236]
[1752313089371,47.6935,2974.7,2974.6,3.20822]
[1752313089773,1.6067,2975.0,2974.9,1.28785]
[1752313089969,48.6889,2975.0,2974.9,3.20815]
[1752313091680,46.149,2975.0,2974.9,3.20815]
[1752313092084,47.0822,2975.0,2974.9,3.20815]
[1752313092973,46.149,2975.0,2974.9,3.20815]
[1752313093579,1.5545,2975.2,2975.1,1.28781]
[1752313093780,48.35049,2975.2,2975.1,3.21071]
[1752313093986,49.29209,2975.2,2975.1,3.21071]
[1752313094178,49.29209,2975.2,2975.1,2.5387]
[1752313094478,2.20235,2975.4,2975.3,0.9329]
[1752313094683,1.5304,2975.4,2975.3,3.25016]
[1752313094883,2.20234,2975.4,2975.3,3.25016]
[1752313095084,1.5304,2975.4,2975.3,3.25016]
[1752313095280,1.5304,2975.4,2975.3,2.5782]
[1752313095481,1.5304,2975.4,2975.3,3.25016]
[1752313095885,2.472,2975.4,2975.3,3.25016]
[1752313097584,3.14394,2975.4,2975.3,3.25016]
[1752313097884,2.472,2975.4,2975.3,3.25016]
[1752313099680,3.14394,2975.4,2975.3,3.25016]
[1752313100080,3.14394,2975.4,2975.3,2.5782]
[1752313101888,3.14394,2975.4,2975.3,3.25016]
[1752313102387,3.14394,2975.4,2975.3,1.6453]
[1752313102893,47.32008236,2975.5,2975.1,6.47379]
[1752313102894,2.16489,2975.2,2975.1,6.47379]
[1752313103085,2.4345,2975.2,2975.1,6.47379]
[1752313103883,1.4929,2975.2,2975.1,6.47379]
[1752313109889,2.4345,2975.2,2975.1,6.47379]
[1752313110393,0.9416,2975.2,2975.1,6.47379]
[1752313110587,47.5117,2975.5,2975.4,3.26594]
[1752313110787,48.0969,2975.5,2975.4,3.26594]
[1752313110987,49.0385,2975.5,2975.4,3.26594]
[1752313112196,48.0969,2975.5,2975.4,3.26594]
[1752313113597,0.8957,2975.9,2975.8,0.6553]
[1752313113795,1.4929,2975.9,2975.8,7.31173236]
[1752313113994,1.4929,2975.9,2975.8,6.47365]
[1752313114196,0.8957,2975.9,2975.8,6.47365]
[1752313114598,48.4573,2976.1,2976.0,1.32711]
[1752313114894,48.4573,2976.1,2976.0,3.26581]
[1752313115292,49.27603575,2976.1,2976.0,2.31711]
[1752313115502,49.27603575,2976.1,2976.0,3.26581]
[1752313115797,0.8957,2976.4,2976.3,3.26574]
[1752313115994,2.31161128,2976.4,2976.3,3.26574]
[1752313116405,3.25321128,2976.4,2976.3,3.26574]
[1752313117304,2.31161128,2976.4,2976.3,3.26574]
[1752313118007,0.81871128,2976.4,2976.3,4.10382236]
[1752313118207,1.71441128,2976.4,2976.3,4.10382236]
[1752313118400,46.578,2976.7,2976.6,0.6553]
[1752313118600,0.5972,2976.4,2976.3,5.48354]
[1752313118800,2.4345,2976.4,2976.3,5.48354]
[1752313119200,2.4345,2976.4,2976.3,6.47354]
[1752313119800,1.4929,2976.4,2976.3,6.47354]
[1752313120406,1.4929,2976.4,2976.3,7.31162236]
[1752313121502,46.571,2976.9,2976.5,0.6553]
[1752313121703,1.26884,2976.8,2976.7,0.67162]
[1752313121897,2.10692236,2976.8,2976.7,0.67162]
[1752313122098,2.33098236,2976.8,2976.7,0.67162]
[1752313122308,3.94420236,2976.8,2976.7,0.67162]
[1752313122502,2.4345,2976.8,2976.7,0.67162]
[1752313122702,3.10612,2976.8,2976.7,0.67162]
[1752313123509,2.4345,2976.8,2976.7,0.67162]
[1752313123808,2.4345,2976.8,2976.7,2.28942]
[1752313124304,1.8708,2977.1,2977.0,2.23118]
[1752313124610,1.549,2977.1,2977.0,4.01796236]
[1752313125608,1.549,2977.1,2977.0,3.17988]
[1752313125609,2.5241,2977.1,2977.0,3.17988]
[1752313125910,2.6047,2976.9,2976.8,0.67162]
[1752313126106,49.1567,2976.9,2976.8,0.67162]
[1752313127899,49.1567,2976.9,2976.8,1.26872]
[1752313128100,48.1816,2976.9,2976.8,3.17522]
[1752313128305,47.5283,2976.9,2976.8,3.17522]
[1752313128610,48.5034,2976.9,2976.8,3.17522]
[1752313129912,47.5283,2976.9,2976.8,3.17522]
[1752313130415,46.552,2976.9,2976.8,3.17522]
[1752313130810,48.5034,2976.9,2976.8,3.17522]
[1752313131613,49.175,2976.9,2976.8,1.26872]
[1752313132004,48.5034,2976.9,2976.8,1.26872]
[1752313132610,49.175,2976.9,2976.8,1.26872]
[1752313133009,0.6533,2976.7,2976.6,4.1703]
[1752313133211,0.6533,2976.7,2976.6,5.43903]
[1752313133513,49.1117,2976.7,2976.6,5.43903]
[1752313133711,49.1117,2976.7,2976.6,6.38303]
[1752313134316,49.1117,2976.7,2976.6,3.17523]
[1752313134515,48.1366,2976.7,2976.6,6.38303]
[1752313135214,1.6296,2976.7,2976.6,6.38303]
[1752313136219,2.6047,2976.7,2976.6,6.38303]
[1752313140222,2.6047,2976.7,2976.6,5.43903]
[1752313141519,2.6047,2976.7,2976.6,6.38303]
[1752313142415,2.6047,2976.7,2976.6,5.43903]
[1752313143925,2.6047,2976.7,2976.6,6.38303]
[1752313144724,1.6296,2976.7,2976.6,6.38303]
[1752313145624,2.6047,2976.7,2976.6,6.38303]
[1752313146926,3.27635,2976.7,2976.6,6.38303]
[1752313147228,2.6047,2976.7,2976.6,6.38303]
[1752313147933,3.27635,2976.7,2976.6,6.38303]
[1752313148229,3.27635,2976.7,2976.6,5.43903]
[1752313148630,3.27635,2976.7,2976.6,6.38303]
[1752313148825,3.27635,2976.7,2976.6,5.43903]
[1752313149029,3.27635,2976.7,2976.6,5.43653154]
[1752313149230,4.09708421,2976.7,2976.6,5.43653154]
[1752313149626,4.09708421,2976.7,2976.6,6.38053154]
[1752313150026,3.42543421,2976.7,2976.6,6.38053154]
[1752313150332,4.09708421,2976.7,2976.6,6.38053154]
[1752313152232,3.42543421,2976.7,2976.6,6.38053154]
[1752313152531,4.09708421,2976.7,2976.6,6.38053154]
[1752313152731,3.42543421,2976.7,2976.6,6.38053154]
[1752313152932,4.09708421,2976.7,2976.6,6.38053154]
[1752313153231,3.42543421,2976.7,2976.6,6.38053154]
[1752313153532,4.09708421,2976.7,2976.6,6.38053154]
[1752313153732,2.45033421,2976.7,2976.6,6.38053154]
[1752313154134,0.82073421,2976.7,2976.6,6.38053154]
[1752313154534,1.79703421,2976.7,2976.6,6.38053154]
[1752313154836,2.42663421,2976.7,2976.6,6.38053154]
[1752313155336,1.6059,2976.7,2976.6,6.38053154]
[1752313155537,2.5933,2976.7,2976.6,6.38053154]
[1752313155836,1.6059,2976.7,2976.6,6.38053154]
[1752313156436,2.5933,2976.7,2976.6,5.43653154]
[1752313156832,2.5933,2976.7,2976.6,7.1757139]
[1752313158838,2.5933,2976.7,2976.6,3.87943]
[1752313159238,4.08647414,2976.7,2976.6,3.87943]
[1752313159738,2.5214,2976.6,2976.3,3.2078]
[1752313159940,48.1838,2976.5,2976.4,0.67169]
[1752313160130,48.85551,2976.5,2976.4,0.67169]
[1752313160328,2.20572,2976.4,2976.3,3.87952]
[1752313160534,2.5214,2976.4,2976.3,3.87952]
[1752313160936,3.19312,2976.4,2976.3,0.67174]
[1752313162430,2.5214,2976.4,2976.3,0.67174]
[1752313162638,2.5214,2976.4,2976.3,2.26514]
[1752313162843,3.19312,2976.4,2976.3,2.26514]
[1752313163044,2.5214,2976.4,2976.3,2.26514]
[1752313164340,48.7984,2976.4,2976.3,4.00432236]
[1752313164735,47.811,2976.4,2976.3,4.00432236]
[1752313166640,48.7984,2976.4,2976.3,4.00432236]
[1752313168341,49.47011,2976.4,2976.3,4.00432236]
[1752313169036,48.7984,2976.4,2976.3,4.00432236]
[1752313169237,48.7984,2976.4,2976.3,0.67174]
[1752313169441,49.47011,2976.4,2976.3,0.67174]
[1752313170141,1.30136,2976.3,2976.2,0.67174]
[1752313170342,3.19316,2976.3,2976.2,0.67174]
[1752313171040,3.19316,2976.3,2976.2,1.61194]
[1752313171545,3.19316,2976.3,2976.2,3.16624]
[1752313171747,3.19316,2976.3,2976.2,4.00432236]
[1752313172540,3.19316,2976.3,2976.2,0.67174]
[1752313173439,3.19316,2976.3,2976.2,1.61194]
[1752313173744,3.19316,2976.3,2976.2,0.67174]
[1752313174434,3.1932,2976.0,2975.9,4.148]
[1752313174641,3.1932,2976.0,2975.4,4.06986852]
[1752313174642,0.6719,2975.7,2975.6,0.9402]
[1752313174938,0.6719,2975.6,2975.5,0.6719]
[1752313175144,2.2889,2975.6,2975.5,1.6121]
[1752313175337,2.2059,2975.6,2975.5,2.2653]
[1752313175544,3.1933,2975.6,2975.5,1.5934]
[1752313176146,3.1933,2975.6,2975.5,2.26532]
[1752313177342,3.1933,2975.6,2975.5,1.5934]
[1752313177537,2.20592,2975.5,2975.4,0.67192]
[1752313177745,49.39932,2975.5,2975.4,0.67192]
[1752313178249,49.39932,2975.5,2975.4,2.26532]
[1752313180552,49.39932,2975.5,2975.4,1.5934]
[1752313180745,49.39932,2975.5,2975.4,2.26534]
[1752313184553,49.39932,2975.5,2975.4,1.5934]
[1752313185747,51.93170236,2975.5,2975.0,0.6144]
[1752313185949,3.20551,2975.1,2975.0,2.4482]
[1752313186146,49.36051,2975.1,2975.0,1.5439]
[1752313186351,3.20553,2975.0,2974.9,2.19075]
[1752313186550,3.20553,2975.0,2974.9,2.21595]
[1752313187052,3.20553,2975.0,2974.9,3.12025]
[1752313187557,3.20553,2975.0,2974.9,2.4482]
[1752313188355,3.20553,2975.0,2974.9,1.5439]
[1752313188545,2.23405,2974.9,2974.8,4.1373]
[1752313188754,3.2056,2974.7,2974.6,3.12031]
[1752313188952,49.3556,2974.7,2974.6,3.12031]
[1752313189950,48.6835,2974.7,2974.6,3.12031]
[1752313190355,49.3556,2974.7,2974.6,3.12031]
[1752313190762,48.6835,2974.7,2974.6,3.12031]
[1752313192361,47.7762,2974.7,2974.6,3.12031]
[1752313193359,48.6835,2974.7,2974.6,3.12031]
[1752313193561,49.3556,2974.7,2974.6,3.12031]
[1752313194059,2.23412,2974.6,2974.5,4.1373]
[1752313194265,1.32682,2974.6,2974.5,4.7517]
[1752313194454,3.20562,2974.6,2974.5,4.7517]
[1752313194957,3.20562,2974.6,2974.5,1.5439]
[1752313196063,3.20562,2974.6,2974.5,2.21604]
[1752313198168,3.20562,2974.6,2974.5,3.12034]
[1752313200868,1.6262,2974.6,2974.5,3.12034]
[1752313201064,3.20562,2974.6,2974.5,2.4482]
[1752313201272,3.20562,2974.6,2974.5,1.5439]
[1752313201468,3.20562,2974.6,2974.5,2.21604]
[1752313201874,3.20562,2974.6,2974.5,3.12034]
[1752313202074,2.5335,2974.6,2974.5,3.12034]
[1752313202374,1.6262,2974.6,2974.5,3.12034]
[1752313202776,2.29832,2974.6,2974.5,3.12034]
[1752313203075,1.6262,2974.6,2974.5,3.12034]
[1752313203469,0.9715,2974.6,2974.5,3.12034]
[1752313204469,46.8221,2974.7,2974.6,0.67212]
[1752313204668,47.7936,2974.7,2974.6,2.12460236]
[1752313204872,47.7936,2974.7,2974.6,3.95840236]
[1752313205073,47.1215,2974.7,2974.6,3.95840236]
[1752313205272,46.15,2974.7,2974.6,3.95840236]
[1752313205975,47.1215,2974.7,2974.6,3.95840236]
[1752313206981,46.15,2974.7,2974.6,3.95840236]
[1752313207173,1.3267,2975.2,2975.1,1.28638]
[1752313207378,46.7287,2975.2,2975.1,1.28638]
[1752313207677,48.6075,2975.2,2975.1,3.12018]
[1752313208470,49.27949,2975.2,2975.1,3.12018]
[1752313209175,47.7002,2975.2,2975.1,3.95826236]
[1752313209572,46.7287,2975.2,2975.1,3.95826236]
[1752313209972,46.074,2975.2,2975.1,3.95826236]
[1752313210171,1.562,2975.6,2975.5,0.67192]
[1752313210374,49.42387571,2975.6,2975.5,3.12012]
[1752313210573,48.6045,2975.6,2975.5,3.12012]
[1752313210976,47.6972,2975.6,2975.5,3.12012]
[1752313211177,48.36909,2975.6,2975.5,3.12012]
[1752313211571,47.6972,2975.6,2975.5,3.12012]
[1752313212074,48.6045,2975.6,2975.5,3.12012]
[1752313212576,49.27639,2975.6,2975.5,3.12012]
[1752313212778,48.6045,2975.6,2975.5,3.12012]
[1752313213178,49.27639,2975.6,2975.5,3.12012]
[1752313213678,48.6045,2975.6,2975.5,3.12012]
[1752313213878,49.27639,2975.6,2975.5,2.4482]
[1752313214076,49.27639,2975.6,2975.5,3.12012]
[1752313214972,48.6045,2975.6,2975.5,3.12012]
[1752313215174,47.6972,2975.6,2975.5,3.12012]
[1752313215374,48.36909,2975.6,2975.5,3.12012]
[1752313215980,47.6972,2975.6,2975.5,3.12012]
[1752313219577,46.071,2975.6,2975.5,3.12012]
[1752313219982,47.0096,2975.6,2975.5,3.12012]
[1752313221080,46.071,2975.6,2975.5,3.12012]
[1752313221681,1.5735,2975.8,2975.7,3.17227]
[1752313221877,47.5915,2975.8,2975.7,4.01035236]
[1752313222077,46.018,2975.8,2975.7,4.01035236]
[1752313222487,1.5735,2976.0,2975.9,1.27163]
[1752313222678,48.5742,2976.0,2975.9,3.17223]
[1752313223182,47.5935,2976.0,2975.9,3.17223]
[1752313223581,46.02,2976.0,2975.9,4.01031236]
[1752313223781,0.9386,2976.2,2976.1,3.17218]
[1752313223982,46.9556,2976.2,2976.1,3.17218]
[1752313224177,46.6519,2976.5,2976.4,1.27151]
[1752313224480,47.6326,2976.5,2976.4,3.17211]
[1752313224881,48.5712,2976.5,2976.4,3.17211]
[1752313225273,47.5905,2976.5,2976.4,3.17211]
[1752313225477,48.5712,2976.5,2976.4,3.17211]
[1752313226683,3.226,2976.0,2975.9,0.67182]
[1752313226880,48.5652,2976.0,2975.9,3.17222]
[1752313227081,47.6105,2976.0,2975.9,4.01030236]
[1752313227478,46.039,2976.3,2976.2,0.67176]
[1752313227787,46.9776,2976.3,2976.2,3.17216]
[1752313230381,0.9386,2976.3,2976.2,3.17216]
[1752313230586,1.5735,2976.3,2976.2,3.17216]
[1752313232986,2.5542,2976.3,2976.2,3.17216]
[1752313237790,3.39228236,2976.3,2976.2,0.67176]
[1752313238187,2.5542,2976.3,2976.2,0.67176]
[1752313238487,2.5542,2976.3,2976.2,1.66176]
[1752313238892,3.22594,2976.3,2976.2,1.66176]
[1752313239093,2.5542,2976.3,2976.2,1.66176]
[1752313239287,2.5542,2976.3,2976.2,2.26156]
[1752313239487,2.5542,2976.3,2976.2,3.17216]
[1752313239687,1.5735,2976.3,2976.2,3.17216]
[1752313239891,2.5542,2976.3,2976.2,3.17216]
[1752313242790,1.5735,2976.3,2976.2,3.17216]
[1752313242985,46.042,2976.4,2976.3,1.27154]